Workbook

Sheet Sheet1
A1: Cash Flow - 12 Month
A5: Account Name | B5: Sep 2024 | C5: Oct 2024 | D5: Nov 2024 | E5: Dec 2024 | F5: Jan 2025 | G5: Feb 2025 | H5: Mar 2025 | I5: Apr 2025 | J5: May 2025 | K5: Jun 2025 | L5: Jul 2025 | M5: Aug 2025 | N5: TOTAL
A6: Operating Income & Expense
A7: Income
A8: RENTS
A9: Rent Income | B9: 52660.42 | C9: 59342.08 | D9: 54611 | E9: 56724.83 | F9: 57934 | G9: 55053.5 | H9: 53677 | I9: 59029 | J9: 59204 | K9: 62619 | L9: 62009 | M9: 67947.48 | N9: =SUM(B9:M9) -> 700811.31
A10: Section 8 Rent | B10: 0 | C10: 0 | D10: 0 | E10: 0 | F10: 0 | G10: 0 | H10: 0 | I10: 0 | J10: 0 | K10: 100 | L10: 0 | M10: 0 | N10: =SUM(B10:M10) -> 100
A11: Total RENTS | B11: 52660.42 | C11: 59342.08 | D11: 54611 | E11: 56724.83 | F11: 57934 | G11: 55053.5 | H11: 53677 | I11: 59029 | J11: 59204 | K11: 62719 | L11: 62009 | M11: 67947.48 | N11: 700911.31
A12: Concessions | B12: 0 | C12: -148.5 | D12: -675 | E12: 0 | F12: -425 | G12: -930 | H12: -300 | I12: -100 | J12: -50 | K12: 0 | L12: 0 | M12: -25 | N12: -2653.5
A13: FEES
A14: Insurance Services | B14: 125.5 | C14: 158 | D14: 52.5 | E14: 0 | F14: 0 | G14: 0 | H14: 0 | I14: 250 | J14: 0 | K14: 0 | L14: 0 | M14: 0 | N14: 586
A15: Late Fee | B15: 377.51 | C15: 283.5 | D15: 402 | E15: 369.5 | F15: 398 | G15: 390 | H15: 220 | I15: 200 | J15: 375 | K15: 385 | L15: 376.75 | M15: 527.5 | N15: 4304.76
A16: Total FEES | B16: 503.01 | C16: 441.5 | D16: 454.5 | E16: 369.5 | F16: 398 | G16: 390 | H16: 220 | I16: 450 | J16: 375 | K16: 385 | L16: 376.75 | M16: 527.5 | N16: 4890.76
A17: Application Fee Income | B17: 297 | C17: 231 | D17: 204 | E17: 140 | F17: 140 | G17: 245 | H17: 245
A18: Total Operating Income | B18: 53460.43 | C18: 59866.08 | D18: 54594.5 | E18: 57234.33 | F18: 58047 | G18: 54758.5 | H18: 53842 | I18: 59379 | J18: 59529 | K18: =(K11+K12+K16) -> 63104 | L18: =(L11+L12+L16) -> 62385.75 | M18: 68449.98 | N18: 704650.57
A19: Expense
A20: EXTERMINATION | B20: 0 | C20: 0 | D20: 3888 | E20: 1962.32 | F20: 0 | G20: 2154.6 | H20: 0 | I20: 0 | J20: 437.4 | K20: 1 | L20: 0 | M20: 0 | N20: 8443.32
A21: Rental registration | B21: 291.36 | C21: 72.84 | D21: 0 | E21: 0 | F21: 0 | G21: 0 | H21: 492.84 | I21: 0 | J21: 72.84 | K21: 145.68 | L21: 0 | M21: 0 | N21: 1075.56
A22: Advertising | B22: 1474 | C22: 1474 | D22: 1474 | E22: 1474 | F22: 1474 | G22: 1474 | H22: 1474 | I22: 2330 | J22: 1210 | K22: 1474 | L22: 0 | M22: 2420 | N22: 17752
A23: CLEANING AND MAINTENANCE
A24: Carpet Cleaning | B24: 0 | C24: 720 | D24: 0 | E24: 0 | F24: 0 | G24: 0 | H24: 560 | I24: 0 | J24: 0 | K24: 0 | L24: 0 | M24: 0 | N24: 1280
A25: On site maintenance | B25: 2928 | C25: 2928 | D25: 2928 | E25: 2928 | F25: 2928 | G25: 2928 | H25: 2928 | I25: 2928 | J25: 2928 | K25: 2928 | L25: 2928 | M25: 2928 | N25: 35136
A26: On site cleaner | B26: 1400 | C26: 1400 | D26: 1400 | E26: 1400 | F26: 1400 | G26: 1400 | H26: 1400 | I26: 1400 | J26: 1400 | K26: 1920 | L26: 2915 | M26: 1920 | N26: 19355
A27: Legal-Eviction | B27: 2178 | C27: 0 | D27: 0 | E27: 0 | F27: 0 | G27: 0 | H27: 2624 | I27: 197.91 | J27: 0 | K27: 529 | L27: 0 | M27: 0 | N27: 5528.91
A28: Leasing/Office | B28: 3000 | C28: 3000 | D28: 3000 | E28: 3000 | F28: 3000 | G28: 3000 | H28: 3000 | I28: 3000 | J28: 3000 | K28: 3000 | L28: 3000 | M28: 3000 | N28: 36000
A29: Plumbing | B29: 0 | C29: 0 | D29: 0 | E29: 0 | F29: 4200 | G29: 350 | H29: 1775 | I29: 1375 | J29: 1141.3 | K29: 1575 | L29: 525 | M29: 0 | N29: 10941.3
A30: HVAC (Heat, Ventilation, Air) | B30: 1860 | C30: 1910 | D30: 590 | E30: 0 | F30: 5500 | G30: 8420 | H30: 0 | I30: 0 | J30: 0 | K30: 0 | L30: 0 | M30: 0 | N30: 18280
A31: Key/Lock Replacement | B31: 0 | C31: 0 | D31: 0 | E31: 0 | F31: -10 | G31: 0 | H31: 0 | I31: 0 | J31: 0 | K31: 1100 | L31: 0 | M31: 0 | N31: 1090
A32: Roof Repair | B32: 0 | C32: 0 | D32: 0 | E32: 0 | F32: 0 | G32: 0 | H32: 3400 | I32: 0 | J32: 0 | K32: 1138.18 | L32: 1189.88 | M32: 1033.6 | N32: 6761.66
A33: Supplies | B33: 771.1 | C33: 1070.53 | D33: 1062.26 | E33: 1005.89 | F33: 2366.54 | G33: 804.51 | H33: 921.3 | N33: 8002.13
A34: UTILITIES
A35: Electricity | B35: 0 | C35: 3068.49 | D35: 4570.7 | E35: 2882.79 | F35: 2762.37 | G35: 3218.95 | H35: 3643.18 | I35: 2456.89 | J35: 2430.03 | K35: 2029.52 | L35: 2642.84 | M35: 2757.2 | N35: 32462.96
A36: Gas | B36: 0 | C36: 1981.4 | D36: 4223.16 | E36: 1547.21 | F36: 2981.66 | G36: 7146.96 | H36: 3696.25 | I36: 8206.91 | J36: 6638.97 | K36: 4208.84 | L36: 1971 | M36: 1916.12 | N36: 44518.48
A37: Water | B37: 1591.25 | C37: 0 | D37: 1982.09 | E37: 3148.94 | F37: 2128.31 | G37: 2024.94 | H37: 406.67 | I37: 4010.2 | J37: 2432.71 | K37: 2153.09 | L37: 25 | M37: 1657.97 | N37: 21561.17
A38: Sewer | B38: 0 | C38: 5571.84 | D38: 5885.02 | E38: 6677.81 | F38: 4067.31 | G38: 4722.49 | H38: 5933.12 | I38: 6424.82 | J38: 6236.51 | K38: 5172.71 | L38: 2877.41 | M38: 3453.56 | N38: 57022.6
A39: Garbage and Recycling | B39: 0 | C39: 3056.25 | D39: 1068.57 | E39: 1064.95 | F39: 2169.62 | G39: 1066.76 | H39: 1772.48 | I39: 1421.65 | J39: 1804.64 | K39: 1665.55 | L39: 1725.38 | M39: 1397.5 | N39: 18213.35
A40: Real Estate Taxes | B40: 11444.25 | C40: 11444.25 | D40: 11444.25 | E40: 11444.25 | F40: 11444.25 | G40: 11444.25 | H40: 11444.25 | I40: 11444.25 | J40: 11444.25 | K40: 11444.25 | L40: 11444.25 | M40: 11444.25 | N40: 137331
A41: Insurance | B41: 2068 | C41: 2068 | D41: 2068 | E41: 2068 | F41: 2068 | G41: 2068 | H41: 2068 | I41: 2068 | J41: 2068 | K41: 2068 | L41: 2068 | M41: 2068 | N41: 24816
A42: OTHER
A43: Security Service | B43: 0 | C43: 0 | D43: 0 | E43: 0 | F43: 0 | G43: 0 | H43: 0 | I43: 0 | J43: 1387.26 | K43: 0 | L43: 0 | M43: 0 | N43: 1387.26
A44: Total Operating Expense | B44: =SUM(B20:B43) -> 29005.96 | C44: =SUM(C20:C43) -> 39765.6 | D44: =SUM(D20:D43) -> 45584.05 | E44: =SUM(E20:E43) -> 40604.16 | F44: =SUM(F20:F43) -> 48480.06 | G44: =SUM(G20:G43) -> 52223.46 | H44: =SUM(H20:H43) -> 47539.09 | I44: =SUM(I20:I43) -> 47263.63 | J44: =SUM(J20:J43) -> 44631.91 | K44: =SUM(K20:K43) -> 42552.82 | L44: =SUM(L20:L43) -> 33311.76 | M44: =SUM(M20:M43) -> 35996.2 | N44: =SUM(B44:M44) -> 506958.7
A46: NOI - Net Operating Income | B46: =(B18-B44) -> 24454.47 | C46: =(C18-C44) -> 20100.48 | D46: =(D18-D44) -> 9010.45 | E46: =(E18-E44) -> 16630.17 | F46: =(F18-F44) -> 9566.94 | G46: =(G18-G44) -> 2535.04 | H46: =(H18-H44) -> 6302.91 | I46: =(I18-I44) -> 12115.37 | J46: =(J18-J44) -> 14897.09 | K46: =(K18-K44) -> 20551.18 | L46: =(L18-L44) -> 29073.99 | M46: =(M18-M44) -> 32453.78 | N46: 197691.87
